bitfinex/quotes_BTCUSD_20251202
["timestamp","ask_amount","ask_price","bid_price","bid_amount"]
[1764674861183,0.24021129,87424.0,87421.0,0.02025303]
[1764674861380,0.0114385,87424.0,87421.0,0.02025303]
[1764674861814,0.24020697,87425.0,87421.0,0.02025303]
[1764674862136,0.22877321,87423.0,87421.0,0.02025303]
[1764674862347,0.08012133,87424.0,87421.0,0.02025303]
[1764674862597,0.22877318,87423.0,87421.0,0.02025303]
[1764674863536,0.22877318,87423.0,87421.0,0.00038303]
[1764674863792,0.45309299,87422.0,87421.0,0.00038303]
[1764674865036,0.38552299,87422.0,87421.0,0.00038303]
[1764674865268,0.40368299,87422.0,87421.0,0.00038303]
[1764674866398,0.40468299,87422.0,87421.0,0.00038303]
[1764674867108,0.001,87422.0,87421.0,0.07694303]
[1764674868128,0.001,87422.0,87421.0,0.09982082]
[1764674868585,0.24017641,87436.0,87430.0,0.01143772]
[1764674868817,0.24017641,87436.0,87434.0,0.02507]
[1764674869066,0.24017641,87436.0,87435.0,0.04494]
[1764674869539,0.01143654,87439.0,87435.0,0.32476745]
[1764674869791,0.01143654,87439.0,87436.0,0.02507]
[1764674870021,0.22873404,87438.0,87436.0,0.02507]
[1764674870722,0.01143667,87438.0,87437.0,0.02507]
[1764674871297,0.24229794,87438.0,87437.0,0.02507]
[1764674871749,0.00212777,87438.0,87437.0,0.02507]
[1764674872424,0.23086127,87438.0,87437.0,0.02507]
[1764674874064,0.00212777,87438.0,87437.0,0.02507]
[1764674874240,0.23086127,87438.0,87437.0,0.02507]
[1764674875227,0.22873873,87436.0,87435.0,0.01987]
[1764674876158,0.22873755,87437.0,87435.0,0.01987]
[1764674876360,0.22873873,87436.0,87435.0,0.01987]
[1764674877560,0.22873755,87437.0,87435.0,0.01987]
[1764674877770,0.33443641,87440.0,87435.0,0.01987]
[1764674877973,0.01143667,87438.0,87435.0,0.01987]
[1764674878168,0.33443641,87440.0,87439.0,0.02507]
[1764674878169,0.323,87440.0,87439.0,0.02507]
[1764674879592,0.324,87440.0,87439.0,0.02507]
[1764674880490,0.55272827,87440.0,87439.0,0.02507]
[1764674882126,0.24016955,87439.0,87436.0,0.22873866]
[1764674882327,0.001,87440.0,87439.0,0.02507]
[1764674882530,0.55272827,87440.0,87439.0,0.02507]
[1764674882837,0.55272827,87440.0,87439.0,0.06472]
[1764674883055,0.55491857,87440.0,87439.0,0.06472]
[1764674883471,0.22873659,87437.0,87435.0,0.01987]
[1764674883655,0.24017509,87438.0,87436.0,0.02507]
[1764674883856,0.24017208,87439.0,87436.0,0.25380752]
[1764674884019,0.22873611,87437.0,87436.0,0.02507]
[1764674884207,0.23083261,87437.0,87436.0,0.02507]
[1764674884605,0.23083261,87437.0,87425.0,0.01987]
[1764674884606,0.24019787,87428.0,87425.0,0.01987]
[1764674884865,0.01143719,87434.0,87427.0,0.2287621]
[1764674885161,0.01143719,87434.0,87425.0,0.01987]
[1764674885162,0.22876489,87426.0,87425.0,0.01987]
[1764674885589,0.22876245,87427.0,87425.0,0.01987]
[1764674885791,0.22876489,87426.0,87425.0,0.01987]
[1764674885996,0.22876489,87426.0,87425.0,0.05769]
[1764674886294,0.22876489,87426.0,87425.0,0.08298]
[1764674886466,0.24019846,87428.0,87425.0,0.08298]
[1764674886677,0.24019846,87428.0,87426.0,0.02529]
[1764674886867,0.22876228,87427.0,87426.0,0.02529]
[1764674887853,0.22876228,87427.0,87426.0,0.06311]
[1764674888684,0.22876228,87427.0,87426.0,0.02529]
[1764674888861,0.22876489,87426.0,87425.0,0.01987]
[1764674890141,0.23051741,87426.0,87425.0,0.01987]
[1764674890557,0.23051741,87426.0,87425.0,0.02087]
[1764674890888,0.23051741,87426.0,87425.0,0.04616]
[1764674891089,0.23051741,87426.0,87425.0,0.08398]
[1764674892072,0.00175252,87426.0,87425.0,0.33562426]
[1764674892271,0.00175252,87426.0,87425.0,0.31274751]
[1764674893065,0.00175252,87426.0,87425.0,0.31174751]
[1764674893510,0.00175252,87426.0,87425.0,0.31274751]
[1764674893739,0.00175252,87426.0,87425.0,0.31174751]
[1764674894181,0.00175252,87426.0,87425.0,0.31374751]
[1764674894408,0.01143327,87464.0,87450.0,0.0114351]
[1764674894631,0.0114334,87463.0,87457.0,0.01143419]
[1764674894832,0.24010381,87463.0,87456.0,0.24011867]
[1764674895064,0.24010381,87463.0,87462.0,0.01873]
[1764674895276,0.0114334,87463.0,87462.0,0.01873]
[1764674895527,0.22994003,87463.0,87462.0,0.08184]
[1764674895762,0.22994003,87463.0,87462.0,0.04402]
[1764674896415,0.00127191,87463.0,87462.0,0.27269073]
[1764674896632,0.22994003,87463.0,87462.0,0.04402]
[1764674896847,0.00127191,87463.0,87462.0,0.04402]
[1764674897066,0.00127191,87463.0,87462.0,0.31051073]
[1764674897280,0.56309054,87467.0,87466.0,0.02529]
[1764674897484,0.01143314,87465.0,87462.0,0.05655]
[1764674897936,0.323,87467.0,87466.0,0.22866027]
[1764674898156,0.323,87467.0,87466.0,0.06311]
[1764674898386,0.323,87467.0,87466.0,0.02529]
[1764674898600,0.55165766,87467.0,87466.0,0.02529]
[1764674899949,0.323,87468.0,87463.0,0.22866812]
[1764674900166,0.08012133,87467.0,87466.0,0.22866027]
[1764674900388,0.323,87468.0,87467.0,0.02529]
[1764674900615,0.55165505,87468.0,87467.0,0.02529]
[1764674900818,0.01143288,87467.0,87463.0,0.22866802]
[1764674901042,0.01143301,87466.0,87463.0,0.22866802]
[1764674901278,0.08012133,87467.0,87466.0,0.25395027]
[1764674901748,0.08012133,87467.0,87466.0,0.29177027]
[1764674901975,0.01816,87471.0,87466.0,0.30320328]
[1764674902204,0.08012133,87468.0,87466.0,0.02529]
[1764674902455,0.08012133,87468.0,87466.0,0.06311]
[1764674902690,0.08012133,87468.0,87467.0,0.06311]
[1764674902935,0.30877638,87468.0,87467.0,0.06311]
[1764674903687,0.08012133,87468.0,87467.0,0.06311]
[1764674903908,0.30877638,87468.0,87467.0,0.06311]
[1764674904240,0.30877638,87468.0,87467.0,0.02529]
[1764674904514,0.01143353,87462.0,87457.0,0.01873]
[1764674904744,0.01143432,87456.0,87454.0,0.01873]
[1764674905004,0.22868904,87455.0,87454.0,0.01884486]
[1764674905691,0.22868904,87455.0,87454.0,0.08195486]
[1764674906660,0.22868904,87455.0,87454.0,0.00011486]
[1764674906870,2.67463203,87455.0,87454.0,0.00111486]
[1764674907116,2.67463203,87455.0,87454.0,0.00011486]
[1764674907567,2.67463203,87455.0,87454.0,0.00111486]
[1764674907800,2.67463203,87455.0,87454.0,0.00011486]
[1764674909951,2.6992597,87455.0,87454.0,0.00011486]
[1764674913048,2.61361904,87455.0,87454.0,0.00011486]
[1764674913244,2.57782904,87455.0,87454.0,0.00011486]
[1764674913526,2.61639904,87455.0,87454.0,0.00011486]
[1764674916190,2.57782904,87455.0,87454.0,0.00011486]
[1764674916418,2.56984904,87455.0,87454.0,0.00011486]
[1764674916913,0.56984904,87455.0,87454.0,0.06059486]
[1764674917160,0.55168904,87455.0,87454.0,0.06059486]
[1764674919367,0.5631188,87457.0,87454.0,0.06059486]
[1764674919594,0.33443419,87457.0,87456.0,0.0241]
[1764674919849,0.323,87457.0,87456.0,0.06048]
[1764674920330,0.323,87457.0,87456.0,0.28916642]
[1764674920554,0.323,87459.0,87456.0,0.28916642]
[1764674920774,0.001,87457.0,87454.0,0.00011486]
[1764674921029,0.33443392,87459.0,87454.0,0.24024045]
[1764674921241,0.323,87459.0,87458.0,0.04308]
[1764674921676,0.55167858,87459.0,87458.0,0.07946]
[1764674922757,0.55267858,87459.0,87458.0,0.07946]
[1764674923174,0.22867737,87460.0,87458.0,0.07946]
[1764674923175,0.55167671,87460.0,87458.0,0.07946]
[1764674923432,0.323,87460.0,87459.0,0.06048]
[1764674924327,0.01143327,87464.0,87459.0,0.06048]
[1764674924554,0.55166479,87465.0,87464.0,0.0241]
[1764674924730,0.55166479,87465.0,87464.0,0.06048]
[1764674925075,0.55166289,87465.0,87464.0,0.06048]
[1764674926094,0.55266289,87465.0,87464.0,0.06048]
[1764674926299,0.55166289,87465.0,87464.0,0.06048]
[1764674926880,0.55266289,87465.0,87464.0,0.06048]
[1764674927204,0.55366289,87465.0,87464.0,0.06048]
[1764674927608,0.55266289,87465.0,87464.0,0.06048]
[1764674928445,0.001,87465.0,87464.0,0.2891455]
[1764674928651,0.0002501,87471.0,87465.0,0.01143314]
[1764674928856,0.0002501,87471.0,87470.0,0.0241]
[1764674929057,0.0002501,87471.0,87470.0,0.25274982]
[1764674929264,0.01143131,87479.0,87470.0,0.28912982]
[1764674929500,0.01143131,87479.0,87468.0,0.24008261]
[1764674929501,0.01143157,87477.0,87471.0,0.03638]
[1764674929692,0.22863014,87478.0,87471.0,0.03638]
[1764674929693,0.01143105,87481.0,87478.0,0.27170865]
[1764674930076,0.01143079,87483.0,87480.0,0.0241]
[1764674930277,0.24004748,87483.0,87482.0,0.0241]
[1764674930463,0.32016881,87483.0,87482.0,0.06048]
[1764674930693,0.32016881,87483.0,87478.0,0.01898]
[1764674930694,0.22862629,87479.0,87478.0,0.01898]
[1764674931091,0.323,87484.0,87478.0,0.27170649]
[1764674931275,0.01143026,87487.0,87483.0,0.0241]
[1764674931483,0.56303619,87487.0,87486.0,0.0241]
[1764674932098,0.56303619,87487.0,87486.0,0.06048]
[1764674932928,0.22862629,87479.0,87470.0,0.05536]
[1764674933135,0.01143209,87473.0,87470.0,0.05536]
[1764674933339,0.2286472,87471.0,87470.0,0.05536]
[1764674933543,0.33443066,87484.0,87474.0,0.01143196]
[1764674933811,0.24005486,87480.0,87476.0,0.0114317]
[1764674934022,0.24005486,87480.0,87475.0,0.27644822]
[1764674934023,0.24005993,87479.0,87475.0,0.27644822]
[1764674934379,0.22861887,87482.0,87478.0,0.04308]
[1764674934587,0.56304979,87482.0,87481.0,0.0241]
[1764674934996,0.323,87482.0,87481.0,0.06048]
[1764674935206,0.001,87483.0,87481.0,0.28910107]
[1764674935433,0.001,87483.0,87482.0,0.06048]
[1764674935990,0.22961584,87483.0,87482.0,0.06048]
[1764674936190,0.00137508,87483.0,87482.0,0.06048]
[1764674936454,0.22999092,87483.0,87482.0,0.06048]
[1764674936772,0.22899092,87483.0,87482.0,0.06048]
[1764674937588,0.00037508,87483.0,87482.0,0.06048]
[1764674937794,0.22899092,87483.0,87482.0,0.06048]
[1764674938900,0.22899092,87483.0,87482.0,0.0241]
[1764674939132,0.22899092,87483.0,87482.0,0.06048]
[1764674940373,0.00037508,87483.0,87482.0,0.06048]
[1764674940600,0.22899092,87483.0,87482.0,0.06048]
[1764674942108,0.00037508,87483.0,87482.0,0.06048]
[1764674942564,0.00037508,87483.0,87482.0,0.28909845]
[1764674942742,0.00037508,87483.0,87482.0,0.06048]
[1764674943481,8.308e-05,87483.0,87482.0,0.06048]
[1764674943643,8.308e-05,87483.0,87482.0,0.28909845]
[1764674945661,8.308e-05,87483.0,87482.0,0.06048]
[1764674945914,8.308e-05,87483.0,87482.0,0.28909845]
[1764674946982,8.308e-05,87483.0,87482.0,0.06048]
[1764674948250,8.308e-05,87483.0,87482.0,0.28909845]
[1764674948476,0.22869892,87483.0,87482.0,0.06048]
[1764674948927,8.308e-05,87483.0,87482.0,0.06048]
[1764674949816,8.308e-05,87483.0,87478.0,0.01898]
[1764674949817,0.22862629,87479.0,87478.0,0.01898]
[1764674950039,0.22862629,87479.0,87478.0,0.08804]
[1764674952089,0.22862629,87479.0,87478.0,0.04704]
[1764674952557,0.22866289,87465.0,87463.0,0.01898]
[1764674952795,0.30878422,87465.0,87463.0,0.01898]
[1764674953277,0.30878422,87465.0,87464.0,0.52806]
[1764674953517,0.30878422,87465.0,87464.0,0.56906]
[1764674954894,0.30878422,87465.0,87464.0,0.52806]
[1764674955353,0.30878422,87465.0,87464.0,0.5]
[1764674955573,0.30878422,87465.0,87464.0,0.501]
[1764674956910,0.01143249,87470.0,87464.0,0.501]
[1764674956911,0.03078848,87484.0,87483.0,0.22861584]
[1764674957117,0.00027059,87489.0,87483.0,0.08049079]
[1764674957325,0.00027059,87489.0,87488.0,0.02806]
[1764674957939,0.00027059,87489.0,87488.0,0.06906]
[1764674958143,0.00027059,87489.0,87488.0,0.29766277]
[1764674959918,0.00027059,87489.0,87488.0,0.06906]
[1764674960128,0.00027059,87489.0,87488.0,0.29766277]
[1764674962008,0.00027059,87489.0,87488.0,0.29966277]
[1764674962151,0.00027059,87489.0,87488.0,0.07106]
[1764674962768,0.00027059,87489.0,87488.0,0.29966277]
[1764674964800,0.00027059,87489.0,87488.0,0.07106]
[1764674965033,0.00027059,87489.0,87488.0,0.29966277]
[1764674966460,0.00027059,87489.0,87488.0,0.07106]
[1764674966705,0.00027059,87489.0,87488.0,0.29966277]
[1764674966917,0.32327059,87489.0,87488.0,0.002]
[1764674967136,0.59731075,87489.0,87488.0,0.002]
[1764674967782,0.551608,87486.0,87485.0,0.5]
[1764674967981,0.578348,87486.0,87485.0,0.5]
[1764674969588,0.34417997,87486.0,87485.0,0.5]
[1764674969790,0.57278797,87486.0,87485.0,0.5]
[1764674972547,0.00027059,87489.0,87485.0,0.5722]
[1764674972712,0.00027059,87489.0,87488.0,0.0301]
[1764674972915,0.24030075,87489.0,87488.0,0.0301]
[1764674973321,0.22887075,87489.0,87488.0,0.0722]
[1764674973976,0.00027059,87489.0,87488.0,0.0722]
[1764674974312,0.00027059,87489.0,87488.0,0.30080277]
[1764674975310,0.001,87492.0,87491.0,0.22859494]
[1764674975633,0.00111482,87492.0,87491.0,0.27950494]
[1764674976024,0.00111482,87492.0,87491.0,0.32123494]
[1764674976297,0.0001,87522.0,87509.0,0.05975739]
[1764674976489,0.0001,87522.0,87521.0,0.02764]
[1764674976490,0.0002148,87522.0,87521.0,0.02764]
[1764674976712,0.0002148,87522.0,87521.0,0.25615658]
[1764674977103,0.0002148,87522.0,87521.0,0.29788658]
[1764674977713,0.0002148,87522.0,87521.0,0.06937]
[1764674978313,0.0002148,87522.0,87521.0,0.29888658]
[1764674978530,0.0002148,87522.0,87521.0,0.29788658]
[1764674978923,0.0002148,87522.0,87521.0,0.29888658]
[1764674979119,0.0002148,87522.0,87521.0,0.29788658]
[1764674980502,0.0002148,87522.0,87521.0,0.29988658]
[1764674981120,0.0002148,87522.0,87521.0,0.07137]
[1764674981562,0.0012457,87522.0,87521.0,0.07137]
[1764674982223,0.0012457,87522.0,87521.0,0.06937]
[1764674983471,0.0012457,87522.0,87521.0,0.07037]
[1764674983683,0.0012457,87522.0,87521.0,0.29888658]
[1764674987558,0.0012457,87522.0,87521.0,0.07037]
[1764674988427,0.0012457,87522.0,87521.0,0.29888658]
[1764674990030,0.0012457,87522.0,87521.0,0.07037]
[1764674990364,0.0012457,87522.0,87521.0,0.29888658]
[1764674993365,0.0012457,87522.0,87521.0,0.29788658]
[1764674993806,0.0012457,87522.0,87521.0,0.29988658]
[1764674994018,0.0012457,87522.0,87521.0,0.29788658]
[1764674994223,0.0012457,87522.0,87521.0,0.30088658]
[1764674995317,0.0012457,87522.0,87521.0,0.30188658]
[1764675000884,0.0004,87560.0,87557.0,0.01142113]
[1764675001080,0.0004,87560.0,87548.0,0.0114223]
[1764675001081,0.00078281,87560.0,87559.0,0.04833]
[1764675001484,0.00078281,87560.0,87559.0,0.3184774]
[1764675002871,0.00178281,87560.0,87559.0,0.3184774]
[1764675003574,0.00178281,87560.0,87559.0,0.3194774]
[1764675004039,0.00178281,87560.0,87559.0,0.09106]
[1764675004264,0.00078281,87560.0,87559.0,0.09106]
[1764675004458,0.00078281,87560.0,87559.0,0.02169]
[1764675004778,0.08090414,87560.0,87559.0,0.001]
[1764675004933,0.40390414,87560.0,87559.0,0.001]
[1764675005516,0.34194281,87560.0,87559.0,0.06909]
[1764675005943,0.42206414,87560.0,87559.0,0.02864]
[1764675006101,0.42206414,87560.0,87559.0,0.06909]
[1764675006964,0.00078281,87560.0,87559.0,0.06909]
[1764675007891,0.22919761,87560.0,87559.0,0.001]
[1764675008267,0.58111761,87560.0,87559.0,0.001]
[1764675009279,0.22843306,87553.0,87550.0,0.5]
[1764675009957,0.22843828,87551.0,87550.0,0.5]
[1764675010172,0.24659828,87551.0,87550.0,0.5]
[1764675010401,2.31869828,87551.0,87550.0,0.5]
[1764675010604,2.72880627,87551.0,87550.0,0.5]
[1764675010820,2.75959475,87551.0,87550.0,0.5]
[1764675011067,2.72880627,87551.0,87550.0,0.5]
[1764675011268,0.2285662,87502.0,87500.0,0.02017]
[1764675011481,0.55158449,87495.0,87485.0,0.04045]
[1764675011685,0.55158449,87495.0,87492.0,0.02017]
[1764675012318,0.323,87495.0,87492.0,0.02017]
[1764675012523,0.323,87495.0,87494.0,0.0202848]
[1764675012729,0.323,87495.0,87494.0,0.0874548]
[1764675012952,0.34116,87495.0,87494.0,0.0470048]
[1764675013129,0.34116,87495.0,87494.0,0.0884548]
[1764675013679,0.323,87495.0,87494.0,0.0884548]
[1764675013889,0.34116,87495.0,87494.0,0.0884548]
[1764675014520,0.34116,87495.0,87494.0,0.0480048]
[1764675014947,0.34116,87495.0,87494.0,0.0884548]
[1764675015348,0.323,87495.0,87494.0,0.0884548]
[1764675015558,0.34116,87495.0,87494.0,0.0884548]
[1764675016210,0.34116,87495.0,87494.0,0.0874548]
[1764675016895,0.01816,87495.0,87494.0,0.0874548]
[1764675017672,0.01816,87495.0,87494.0,0.0001148]
[1764675017673,0.38136748,87495.0,87494.0,0.0001148]
[1764675018167,2.70436748,87495.0,87494.0,0.0001148]
[1764675019340,2.55158449,87495.0,87494.0,0.0001148]
[1764675019547,2.56978449,87495.0,87494.0,0.0001148]
[1764675019765,0.55158449,87495.0,87494.0,0.0001148]
[1764675019973,0.56978449,87495.0,87494.0,0.0001148]
[1764675020607,0.57078449,87495.0,87494.0,0.0001148]
[1764675021224,0.3422,87495.0,87494.0,0.0001148]
[1764675021396,0.3432,87495.0,87494.0,0.0001148]
[1764675022279,0.325,87495.0,87494.0,0.0001148]
[1764675022457,0.3432,87495.0,87494.0,0.0001148]
[1764675023381,0.11492567,87495.0,87494.0,0.0001148]
[1764675023752,0.0202,87495.0,87494.0,0.0268348]
[1764675023955,0.0202,87495.0,87494.0,0.0001148]
[1764675024217,0.002,87495.0,87494.0,0.0001148]
[1764675024513,0.0202,87495.0,87494.0,0.0672848]
[1764675025349,0.0192,87495.0,87494.0,0.0672848]
[1764675025572,0.0192,87495.0,87494.0,0.0682848]
[1764675025699,0.001,87495.0,87494.0,0.2968719]
[1764675026120,0.01816,87501.0,87500.0,0.22857142]
[1764675026324,0.01816,87501.0,87500.0,0.02672]
[1764675026855,0.23999999,87500.0,87494.0,0.0011148]
[1764675027076,0.24000584,87498.0,87495.0,0.22858441]
[1764675027357,0.24000584,87498.0,87494.0,0.24113121]
[1764675027552,0.01142857,87500.0,87496.0,0.01142909]
[1764675027758,0.2581595,87501.0,87497.0,0.22857911]
[1764675027967,0.2581595,87501.0,87500.0,0.22857142]
[1764675027968,0.01816,87501.0,87500.0,0.22857142]
[1764675028172,0.01142674,87514.0,87503.0,0.01142817]
[1764675028385,0.011427,87512.0,87506.0,0.02017]
[1764675028624,0.01142674,87514.0,87508.0,0.01142752]
[1764675028753,0.01816,87511.0,87508.0,0.01142752]
[1764675028959,0.01816,87511.0,87508.0,0.22854804]
[1764675029163,0.01816,87511.0,87510.0,0.02672]
[1764675029548,0.01816,87511.0,87510.0,0.2552653]
[1764675029801,0.01816,87511.0,87510.0,0.02672]
[1764675030900,0.02958713,87511.0,87507.0,0.22854799]
[1764675031104,0.01816,87511.0,87506.0,0.07204778]
[1764675031282,0.01816,87511.0,87508.0,0.22854806]
[1764675031428,0.01816,87511.0,87510.0,0.02672]
[1764675032286,0.24670269,87511.0,87510.0,0.02672]
[1764675032870,0.01142726,87510.0,87506.0,0.02017]
[1764675033092,0.23997317,87510.0,87506.0,0.26015123]
[1764675033303,0.01816,87511.0,87506.0,0.03159778]
[1764675033538,0.25813018,87511.0,87507.0,0.2285508]
[1764675033733,0.25813018,87511.0,87506.0,0.02017]
[1764675033734,0.22855314,87507.0,87506.0,0.02017]
[1764675033935,0.23998464,87506.0,87502.0,0.23999341]
[1764675034213,0.01816,87511.0,87506.0,0.03296]
[1764675034414,0.01816,87511.0,87510.0,0.03296]
[1764675034893,0.01816,87511.0,87505.0,0.22855756]
[1764675034894,0.01142752,87508.0,87501.0,0.03494844]
[1764675035096,0.01142778,87506.0,87502.0,0.001]
[1764675035296,0.23998399,87506.0,87502.0,0.001]
[1764675035484,0.01142791,87505.0,87501.0,0.25208652]
[1764675035720,0.01142791,87505.0,87503.0,0.22856353]
[1764675035865,0.23998399,87506.0,87502.0,0.22856501]
[1764675036075,0.01142804,87504.0,87501.0,0.02352]
[1764675036275,0.22854593,87510.0,87503.0,0.22856231]
[1764675036474,0.22855082,87508.0,87506.0,0.03309]
[1764675036876,0.25813212,87511.0,87506.0,0.03309]
[1764675037081,0.01142739,87509.0,87506.0,0.26164497]
[1764675037404,0.01816,87511.0,87510.0,0.2616353]
[1764675038118,0.01916,87511.0,87510.0,0.2616353]
[1764675038326,0.01816,87511.0,87510.0,0.2616353]
[1764675038949,0.01816,87511.0,87510.0,0.3104953]
[1764675039178,0.01816,87511.0,87508.0,0.2399767]
[1764675039179,0.01816,87511.0,87509.0,0.22854762]
[1764675039421,0.01816,87511.0,87510.0,0.2285453]
[1764675039988,0.02255,87537.0,87512.0,0.22853789]
[1764675040215,0.02255,87537.0,87524.0,0.26159652]
[1764675040216,0.2287432,87530.0,87524.0,0.26159652]
[1764675040434,0.08012133,87529.0,87525.0,0.22850493]
[1764675040656,0.08012133,87529.0,87526.0,0.2285032]
[1764675040871,0.08012133,87529.0,87527.0,0.2285004]
[1764675041111,0.09154611,87529.0,87524.0,0.01142543]
[1764675041332,0.09154611,87529.0,87528.0,0.2284983]
[1764675041333,0.08012133,87529.0,87528.0,0.2284983]
[1764675041794,0.08012133,87529.0,87527.0,0.22850078]
[1764675042026,0.001,87529.0,87528.0,0.3104483]
[1764675042249,0.00024985,87530.0,87529.0,0.22849569]
[1764675042481,0.00024985,87530.0,87529.0,0.26158569]
[1764675043144,0.00024985,87530.0,87529.0,0.22849569]
[1764675043357,0.00024985,87530.0,87529.0,0.31044569]
[1764675043780,0.00024985,87530.0,87529.0,0.26158569]
[1764675043989,0.00024985,87530.0,87529.0,0.22849569]
[1764675044201,0.00024985,87530.0,87529.0,0.22949569]
[1764675048592,0.00024985,87530.0,87527.0,0.01142504]
[1764675048835,0.00024985,87530.0,87529.0,0.22849569]
[1764675049037,0.00024985,87530.0,87529.0,0.26158569]
[1764675049418,0.00024985,87530.0,87529.0,0.22849569]
[1764675050001,0.22854092,87512.0,87506.0,0.03596778]
[1764675050198,0.01142661,87515.0,87506.0,0.03596778]
[1764675050199,0.2399616,87514.0,87509.0,0.0001148]
[1764675050401,0.2610853,87510.0,87509.0,0.0001148]
[1764675050880,0.3092253,87510.0,87509.0,0.0001148]
[1764675051848,0.3102253,87510.0,87509.0,0.0001148]
[1764675052077,0.3112253,87510.0,87509.0,0.0001148]
[1764675052888,2.3112253,87510.0,87509.0,0.0001148]
[1764675053257,2.72135512,87510.0,87509.0,0.0001148]
[1764675053701,2.66135512,87510.0,87509.0,0.0001148]
[1764675054043,2.69389512,87510.0,87509.0,0.0001148]
[1764675055013,2.69389512,87510.0,87450.0,0.86739973]
[1764675055014,0.22870044,87451.0,87449.0,0.02454]
[1764675055216,0.22870044,87451.0,87449.0,0.02465482]
[1764675055845,0.22870044,87451.0,87449.0,0.00011482]
[1764675056321,0.22870044,87451.0,87449.0,0.00111482]
[1764675056730,0.08012133,87450.0,87449.0,0.00111482]
[1764675057566,0.08012133,87450.0,87449.0,0.00011482]
[1764675059113,0.11266133,87450.0,87449.0,0.00011482]
[1764675059232,0.14776133,87450.0,87449.0,0.00011482]
[1764675059430,0.21028432,87450.0,87449.0,0.00011482]
[1764675060273,0.21128432,87450.0,87449.0,0.00011482]
[1764675060897,0.21228432,87450.0,87449.0,0.00011482]
[1764675062393,0.21228432,87450.0,87449.0,0.03320482]
[1764675062394,0.002,87450.0,87449.0,0.03320482]
[1764675062603,0.002,87450.0,87449.0,0.08206482]
[1764675062801,0.02016,87450.0,87449.0,0.08206482]
[1764675063396,0.002,87450.0,87449.0,0.08206482]
[1764675063597,0.002,87450.0,87449.0,0.10493529]
[1764675064372,0.001,87450.0,87449.0,0.10493529]
[1764675064600,0.08735472,87461.0,87456.0,0.01143432]
[1764675064832,0.01143405,87458.0,87450.0,0.04886]
[1764675065065,0.01143471,87453.0,87449.0,0.24025411]
[1764675065284,0.24012965,87453.0,87449.0,0.22881888]
[1764675065520,0.24012965,87453.0,87449.0,0.00011482]
[1764675065521,0.2286998,87451.0,87449.0,0.00011482]
[1764675065756,0.2287002,87451.0,87449.0,0.00011482]
[1764675065996,0.08012133,87450.0,87449.0,0.00011482]
[1764675066234,0.12745133,87450.0,87449.0,0.00011482]
[1764675066460,0.01143484,87452.0,87449.0,0.00211482]
[1764675066682,0.01816,87453.0,87451.0,0.2702623]
[1764675066908,0.01816,87453.0,87452.0,0.07829]
[1764675067143,0.22868056,87459.0,87453.0,0.01143471]
[1764675067371,0.32024011,87457.0,87452.0,0.07829]
[1764675067610,0.24012093,87456.0,87452.0,0.31842112]
[1764675067812,0.24012463,87455.0,87452.0,0.03013]
[1764675068084,0.22869343,87454.0,87452.0,0.03013]
[1764675068290,0.24012463,87455.0,87452.0,0.03013]
[1764675068517,0.08786021,87454.0,87452.0,0.03013]
[1764675068734,0.24012463,87455.0,87452.0,0.03013]
[1764675068944,0.22869211,87454.0,87452.0,0.03013]
[1764675069155,0.22869211,87454.0,87453.0,0.03013]
[1764675069362,0.08012133,87457.0,87454.0,0.22869147]
[1764675069602,0.3202399,87457.0,87454.0,0.03013]
[1764675069808,0.22870156,87451.0,87449.0,0.00011482]
[1764675070287,0.22870211,87450.0,87449.0,0.00011482]
[1764675071315,0.2401348,87452.0,87449.0,0.00011482]
[1764675071925,0.22870211,87450.0,87449.0,0.00011482]
[1764675072133,0.22870211,87450.0,87449.0,0.00111482]
[1764675072337,0.22870211,87450.0,87449.0,0.00011482]
[1764675072552,0.24013345,87452.0,87449.0,0.03024482]
[1764675072764,0.22869992,87451.0,87450.0,0.03013]
[1764675072900,0.30882125,87451.0,87450.0,0.03013]
[1764675073551,0.08012133,87451.0,87449.0,0.00011482]
[1764675073785,0.08012133,87451.0,87450.0,0.03013]
[1764675074018,0.08012133,87451.0,87450.0,0.03113]
[1764675074670,0.08012133,87451.0,87450.0,0.25983211]
[1764675075300,0.08012133,87451.0,87450.0,0.03113]
[1764675075999,0.08012133,87451.0,87450.0,0.25983211]
[1764675076213,0.24012362,87455.0,87450.0,0.0425651]
[1764675076432,0.2286995,87451.0,87450.0,0.03113]
[1764675076591,0.12501102,87451.0,87450.0,0.001]
[1764675077219,0.06413102,87451.0,87450.0,0.001]
[1764675077609,0.2286995,87451.0,87450.0,0.001]
[1764675078024,0.01143458,87454.0,87450.0,0.07929]
[1764675078377,0.01143445,87455.0,87454.0,0.03013]
[1764675078586,0.06252299,87473.0,87454.0,0.03013]
[1764675078587,0.22866742,87464.0,87454.0,0.04156458]
[1764675078811,0.02959314,87465.0,87460.0,0.01143379]
[1764675078991,0.02959314,87465.0,87461.0,0.01143366]
[1764675078992,0.25825664,87465.0,87461.0,0.01143366]
[1764675079237,0.01143262,87469.0,87458.0,0.26214288]
[1764675079238,0.01143196,87474.0,87468.0,0.01143275]
[1764675079451,0.01755,87483.0,87468.0,0.01143275]
[1764675079452,0.01143079,87483.0,87481.0,0.05216]
[1764675079680,0.01143079,87483.0,87482.0,0.07829]
[1764675079882,0.25820458,87484.0,87482.0,0.07829]
[1764675080102,0.22861584,87483.0,87482.0,0.03013]
[1764675080519,0.22861845,87482.0,87481.0,0.02203]
[1764675080734,0.22861845,87482.0,87481.0,0.02214482]
[1764675080877,0.22861845,87482.0,87481.0,0.05227482]
[1764675081743,0.02959026,87487.0,87481.0,0.05227482]
[1764675081744,0.01142987,87490.0,87483.0,0.22861369]
[1764675081860,0.24003315,87488.0,87483.0,0.24004448]
[1764675082065,0.24003597,87487.0,87483.0,0.22861519]
[1764675082300,0.24003565,87487.0,87486.0,0.03013]
[1764675083797,0.24003565,87487.0,87486.0,0.03113]
[1764675084018,0.24003565,87487.0,87486.0,0.001]
[1764675084383,0.24001624,87495.0,87491.0,0.22859494]
[1764675084727,0.24001624,87495.0,87487.0,0.01143026]
[1764675084728,0.01142909,87496.0,87494.0,0.03013]
[1764675084943,0.24001658,87494.0,87491.0,0.22859483]
[1764675085080,0.01142935,87494.0,87486.0,0.001]
[1764675085312,0.2400272,87491.0,87488.0,0.22860254]
[1764675085516,0.01755,87489.0,87487.0,0.22860533]
[1764675086127,0.24002893,87490.0,87488.0,0.03013]
[1764675086325,0.001,87495.0,87489.0,0.04156]
[1764675086536,0.24002001,87493.0,87490.0,0.27675755]
[1764675086738,0.01142948,87493.0,87491.0,0.22859486]